bitfinex-derivatives/quotes_ETHF0:USTF0_20250606
["timestamp","ask_amount","ask_price","bid_price","bid_amount"]
[1749222695131,1.47871,2515.6,2515.5,0.79444]
[1749222697526,0.6843,2515.6,2515.5,0.79444]
[1749222697731,1.47871,2515.6,2515.5,0.79444]
[1749222697926,0.6843,2515.6,2515.5,0.79444]
[1749222698232,1.47871,2515.6,2515.5,0.79444]
[1749222698732,0.6843,2515.6,2515.5,0.79444]
[1749222698932,5.9434,2515.7,2515.6,0.79441]
[1749222699127,5.149,2515.7,2515.6,4.00221]
[1749222699432,1.2925,2516.0,2515.7,1.9859]
[1749222699632,1.2925,2516.0,2515.9,0.79431]
[1749222699830,2.08678,2516.0,2515.9,0.79431]
[1749222700137,48.14,2516.3,2516.0,1.98566]
[1749222700430,0.79428,2516.1,2516.0,0.79425]
[1749222700832,7.13461,2516.2,2515.6,5.19382]
[1749222701033,7.13461,2516.2,2516.1,0.79425]
[1749222701034,6.409,2516.2,2516.1,0.79425]
[1749222701227,6.409,2516.2,2515.9,5.19355]
[1749222701228,24.033,2516.3,2516.2,0.79422]
[1749222701528,1.3404,2516.5,2516.4,0.79415]
[1749222701724,5.8308,2516.5,2516.4,0.79415]
[1749222701925,0.6818,2516.5,2516.3,3.2078]
[1749222702132,4.33e-06,2516.6,2516.5,0.79412]
[1749222702728,4.33e-06,2516.6,2516.5,2.79472]
[1749222702928,0.79409433,2516.6,2516.5,0.6283]
[1749222703134,0.79414,2516.5,2516.4,0.79413]
[1749222703435,0.79414,2516.5,2516.4,0.79414]
[1749222703623,4.33e-06,2516.6,2516.5,0.79412]
[1749222704135,0.79409433,2516.6,2516.5,0.79412]
[1749222704641,4.33e-06,2516.6,2516.5,0.79412]
[1749222704831,0.79409433,2516.6,2516.5,0.79412]
[1749222705437,4.33e-06,2516.6,2516.5,0.79412]
[1749222707036,4.33e-06,2516.6,2516.5,2.12872]
[1749222708331,4.33e-06,2516.6,2516.5,3.69335686]
[1749222708532,4.33e-06,2516.6,2516.5,2.12872]
[1749222708733,4.33e-06,2516.6,2516.5,3.69569888]
[1749222711536,4.33e-06,2516.6,2516.5,1.3346]
[1749222711836,5.00000433,2516.6,2516.1,0.6283]
[1749222712037,7.7812,2516.5,2516.1,0.6283]
[1749222712332,4.33e-06,2516.6,2516.5,0.79412]
[1749222713331,0.79409433,2516.6,2516.5,0.79412]
[1749222714135,4.33e-06,2516.6,2516.5,0.79412]
[1749222714642,4.33e-06,2516.6,2516.5,5.94112]
[1749222714941,4.33e-06,2516.6,2516.5,7.32702]
[1749222721032,4.33e-06,2516.6,2516.5,5.94112]
[1749222722236,4.33e-06,2516.6,2516.5,12.50536956]
[1749222722438,4.33e-06,2516.6,2516.5,13.75896956]
[1749222722743,0.79364,2518.1,2517.5,1.98449]
[1749222722939,0.79365,2518.0,2517.9,4.00147]
[1749222723149,0.6626,2518.1,2518.0,0.79365]
[1749222723343,1.45622,2518.1,2518.0,0.79365]
[1749222723747,0.79365,2518.0,2517.9,4.00147]
[1749222724138,0.6626,2518.1,2518.0,0.79365]
[1749222724548,0.00596433,2518.3,2518.2,0.79359]
[1749222724745,0.00596433,2518.3,2518.2,4.00139]
[1749222725741,0.79952433,2518.3,2518.2,3.2078]
[1749222725945,0.00596433,2518.3,2518.2,4.00139]
[1749222726240,0.79952433,2518.3,2518.2,3.2078]
[1749222726546,0.00596433,2518.3,2518.2,4.00139]
[1749222727147,0.79952433,2518.3,2518.2,4.00139]
[1749222727341,0.79952433,2518.3,2518.2,3.2078]
[1749222727644,0.79953433,2518.3,2517.9,5.142]
[1749222727846,0.00596433,2518.3,2517.9,5.142]
[1749222728040,0.00596433,2518.3,2518.0,0.79363]
[1749222728041,0.79359,2518.2,2518.0,0.79363]
[1749222728242,0.79359,2518.2,2518.1,4.00142]
[1749222728443,0.69006433,2518.3,2518.2,0.79359]
[1749222729341,0.00596433,2518.3,2518.2,0.79359]
[1749222729747,0.00596433,2518.3,2518.2,1.43519]
[1749222729941,0.00596433,2518.3,2518.2,2.68449]
[1749222731044,0.00596433,2518.3,2518.2,1.43519]
[1749222731249,0.79359,2518.2,2518.1,3.2078]
[1749222731543,1.44929,2518.2,2518.1,3.2078]
[1749222731748,2.13439,2518.2,2518.1,3.2078]
[1749222731948,1.3408,2518.2,2518.1,4.00142]
[1749222732146,1.33526433,2518.3,2518.1,4.00142]
[1749222732147,0.00596433,2518.3,2518.2,0.79359]
[1749222732851,0.00596433,2518.3,2518.2,2.06449]
[1749222733850,1.3408,2518.9,2518.8,0.7934]
[1749222734044,0.6851,2518.9,2518.8,4.0012]
[1749222734347,1.47847,2518.9,2518.8,3.2078]
[1749222734551,1.98351,2518.8,2518.2,0.79357]
[1749222734755,0.79359,2518.2,2518.1,3.2078]
[1749222735644,2.78488,2518.3,2518.2,0.79359]
[1749222735844,0.79359,2518.2,2518.1,4.0014]
[1749222736046,2.78488,2518.3,2518.2,0.79359]
[1749222736253,1.9913,2518.3,2518.2,0.79359]
[1749222737146,0.6326,2518.3,2518.2,0.79359]
[1749222737353,0.79359,2518.2,2518.1,3.2078]
[1749222737750,2.13799,2518.2,2518.1,4.00142]
[1749222739359,2.13799,2518.2,2518.1,3.2078]
[1749222739559,2.13799,2518.2,2518.1,4.00142]
[1749222739759,2.13799,2518.2,2518.1,3.2078]
[1749222741258,2.13799,2518.2,2518.1,4.00142]
[1749222742657,0.79365,2518.0,2517.9,0.00596433]
[1749222743057,0.79365,2518.0,2517.9,0.79964433]
[1749222743251,0.79365,2518.0,2517.9,0.00596433]
[1749222743457,5.79365,2518.0,2517.9,0.00596433]
[1749222743957,0.79387,2517.3,2517.2,3.2078]
[1749222744348,11.62263,2517.8,2517.2,3.2078]
[1749222744554,1.2853,2517.7,2517.2,3.2078]
[1749222744856,0.79387,2517.3,2517.2,3.2078]
[1749222745155,0.79393,2517.1,2517.0,0.79395]
[1749222745356,0.79397,2517.0,2516.9,4.00178]
[1749222745558,0.79409,2516.7,2516.6,3.2078]
[1749222745760,1.99065433,2517.3,2516.7,0.79403]
[1749222745761,0.79405,2516.8,2516.7,0.79403]
[1749222747069,0.79406,2516.7,2516.6,4.00189]
[1749222747254,0.79406,2516.7,2516.6,0.79409]
[1749222747554,1.3142,2516.8,2516.3,3.2078]
[1749222747753,2.1051,2516.9,2516.8,0.79403]
[1749222748151,1.3111,2516.9,2516.8,0.79403]
[1749222748460,2.1051,2516.9,2516.8,0.79403]
[1749222748657,2.6253,2516.9,2516.7,0.79404]
[1749222748959,2.6253,2516.9,2516.8,0.79403]
[1749222749758,2.6253,2516.9,2516.6,3.2078]
[1749222749759,0.79404,2516.8,2516.6,3.2078]
[1749222750151,2.14954,2516.8,2516.7,0.79406]
[1749222750351,1.3555,2516.8,2516.7,0.79406]
[1749222750956,1.3111,2516.9,2516.8,0.79403]
[1749222751162,5.93095,2517.1,2516.7,1.98515]
[1749222751355,0.79397,2517.0,2516.9,0.79398]
[1749222751550,0.79402,2516.9,2516.8,0.79402]
[1749222751860,0.79404,2516.8,2516.7,0.79404]
[1749222752057,1.3555,2517.0,2516.6,3.8743]
[1749222752358,5.93094,2517.1,2516.7,1.98513]
[1749222752567,5.93094,2517.1,2517.0,0.79396]
[1749222753265,0.79394,2517.1,2517.0,0.79396]
[1749222754569,0.794,2517.0,2516.9,0.79397]
[1749222755964,0.79396,2517.1,2517.0,0.79393]
[1749222756157,2.11233,2517.2,2517.1,0.79393]
[1749222756364,7.25033,2517.2,2517.1,0.79393]
[1749222756560,8.44117,2517.2,2516.7,1.3353]
[1749222756768,0.794,2517.0,2516.9,0.79396]
[1749222758064,0.79396,2517.0,2516.9,0.79396]
[1749222758262,0.79403,2516.9,2516.8,0.79399]
[1749222758465,8.4412,2517.2,2516.6,5.85951]
[1749222758466,0.79398,2517.0,2516.9,0.79395]
[1749222759061,0.79398,2517.0,2516.7,1.98513]
[1749222759062,0.79396,2517.1,2517.0,0.79393]
[1749222759367,0.00596433,2517.3,2517.2,0.7939]
[1749222759568,0.00596433,2517.3,2517.2,4.0017]
[1749222760571,4.33e-06,2517.3,2517.2,4.0017]
[1749222767874,4.33e-06,2517.3,2517.2,5.3128]
[1749222770079,4.33e-06,2517.3,2517.2,15.4498]
[1749222770375,4.33e-06,2517.3,2517.2,10.4498]
[1749222771176,4.33e-06,2517.3,2517.2,5.3128]
[1749222773073,4.33e-06,2517.3,2517.2,6.88176229]
[1749222773268,4.33e-06,2517.3,2517.2,6.88201627]
[1749222773573,4.33e-06,2517.3,2517.2,5.3128]
[1749222773977,4.33e-06,2517.3,2517.2,6.88201627]
[1749222775479,4.33e-06,2517.3,2517.2,5.3128]
[1749222776476,4.33e-06,2517.3,2517.2,7.65833146]
[1749222778673,4.33e-06,2517.3,2517.2,5.3128]
[1749222780081,4.33e-06,2517.3,2517.2,7.65833146]
[1749222780380,4.33e-06,2517.3,2517.2,5.3128]
[1749222780782,4.33e-06,2517.3,2517.2,7.65833146]
[1749222781376,4.33e-06,2517.3,2517.2,5.3128]
[1749222782982,4.33e-06,2517.3,2517.2,7.65833146]
[1749222785378,4.33e-06,2517.3,2517.2,5.3128]
[1749222787182,4.33e-06,2517.3,2517.2,4.0017]
[1749222788488,4.33e-06,2517.3,2517.2,5.2855]
[1749222788686,4.33e-06,2517.3,2517.2,13.41287528]
[1749222788882,0.6897,2518.4,2518.3,0.79356]
[1749222789080,0.6897,2518.4,2518.3,4.00136]
[1749222789283,0.6925,2518.8,2518.3,3.2078]
[1749222789489,0.79344,2518.7,2518.6,1.57515936]
[1749222789685,2.11204,2518.7,2518.6,0.79347]
[1749222789994,2.11204,2518.7,2518.4,1.57515936]
[1749222789995,0.79348,2518.6,2518.5,0.79348]
[1749222790286,1.3186,2518.6,2518.5,2.36863936]
[1749222790488,1.3822,2518.8,2518.7,0.79344]
[1749222790785,1.3822,2518.8,2518.7,4.00124]
[1749222791886,3.45321,2518.8,2518.7,4.00124]
[1749222792093,2.6598,2518.8,2518.7,4.00124]
[1749222793486,0.00596433,2518.9,2518.8,0.79341]
[1749222793688,0.00596433,2518.9,2518.7,4.00123]
[1749222793689,0.79341,2518.8,2518.7,4.00123]
[1749222793889,0.79341,2518.8,2518.7,3.2078]
[1749222794194,0.79341,2518.8,2518.7,4.00124]
[1749222794690,2.07695433,2518.9,2518.8,0.79341]
[1749222795086,0.79341,2518.8,2518.7,4.00122]
[1749222795390,2.07693433,2518.9,2518.8,0.79341]
[1749222795585,0.79341,2518.8,2518.7,3.2078]
[1749222795788,1.3038,2518.8,2518.4,3.21376433]
[1749222795983,0.7935,2518.5,2518.4,3.21376433]
[1749222796179,0.7935,2518.5,2518.4,0.00596433]
[1749222796382,5.7935,2518.5,2518.4,0.00596433]
[1749222797597,5.7935,2518.5,2518.4,0.79949433]
[1749222797793,1.3038,2518.6,2518.4,0.00596433]
[1749222797989,0.7935,2518.5,2518.4,0.79948433]
[1749222798191,1.3038,2518.6,2518.5,0.7935]
[1749222799096,1.3038,2518.6,2518.4,3.21376433]
[1749222799097,0.7935,2518.5,2518.4,4.00726433]
[1749222799292,0.7935,2518.5,2518.4,3.21376433]
[1749222799797,0.7935,2518.5,2518.4,0.00596433]
[1749222800288,0.7935,2518.5,2518.4,0.79949433]
[1749222800594,2.09729,2518.6,2518.5,0.7935]
[1749222800793,5.796,2518.7,2518.6,0.79347]
[1749222800794,0.668,2518.7,2518.6,0.79347]
[1749222801094,1.46144,2518.7,2518.6,0.79347]
[1749222801296,2.74104,2518.7,2518.6,0.79347]
[1749222802688,1.9476,2518.7,2518.6,0.79347]
[1749222802889,2.74104,2518.7,2518.6,0.79347]
[1749222803995,1.9476,2518.7,2518.6,0.79347]
[1749222804293,2.74104,2518.7,2518.6,0.79347]
[1749222804499,1.9476,2518.7,2518.4,0.00596433]
[1749222804690,2.74105,2518.7,2518.6,0.79347]
[1749222805794,1.9476,2518.7,2518.6,0.79347]
[1749222806492,0.00596433,2518.9,2518.8,0.79341]
[1749222806695,0.79933433,2518.9,2518.8,0.79341]
[1749222807799,0.00596433,2518.9,2518.8,0.79341]
[1749222807997,0.79933433,2518.9,2518.8,0.79341]
[1749222808499,0.00596433,2518.9,2518.8,0.79341]
[1749222810298,0.00596433,2518.9,2518.8,2.15501]
[1749222812904,0.00596433,2518.9,2518.8,3.73016936]
[1749222814300,0.6552,2519.4,2519.3,0.79325]
[1749222814799,0.6483,2519.9,2519.4,1.98305]
[1749222814993,0.6483,2519.9,2519.5,0.6928]
[1749222814994,0.7931,2519.8,2519.5,0.6928]
[1749222815196,1.90836433,2519.9,2519.6,0.79314]
[1749222815407,0.79309,2519.8,2519.7,0.79312]
[1749222815696,0.79309,2519.8,2519.7,4.0009]
[1749222816005,1.44734433,2519.9,2519.8,0.79309]
[1749222816198,0.65426433,2519.9,2519.8,0.79309]
[1749222816503,0.00596433,2519.9,2519.8,0.79309]
[1749222816896,0.00596433,2519.9,2519.8,2.17139]
[1749222818001,0.6719,2520.3,2520.2,0.79296]
[1749222818196,0.79293,2520.3,2520.2,3.2078]
[1749222818503,0.79293,2520.3,2520.2,4.00076]
[1749222819107,0.79292,2520.4,2520.3,0.79293]
[1749222819507,0.79293,2520.3,2520.2,4.00074]
[1749222819810,0.79293,2520.3,2520.2,4.00076]
[1749222820204,0.79293,2520.4,2520.3,0.79293]
[1749222820404,0.79293,2520.3,2520.2,4.00075]
[1749222820609,1.35615226,2520.5,2520.2,3.2078]
[1749222820913,0.79293,2520.3,2520.2,4.00074]
[1749222821106,0.79293,2520.3,2520.2,3.2078]
[1749222822611,0.79293,2520.3,2520.2,4.00076]
[1749222823409,0.00595226,2520.5,2520.4,0.7929]
[1749222824816,0.79882226,2520.5,2520.4,0.7929]
[1749222825008,0.00595226,2520.5,2520.4,0.7929]
[1749222825411,0.79882226,2520.5,2520.4,0.7929]
[1749222825811,0.00595226,2520.5,2520.4,0.7929]
[1749222826006,0.79882226,2520.5,2520.4,0.7929]
[1749222826203,0.00595226,2520.5,2520.4,0.7929]
[1749222827918,0.07728577,2520.5,2520.4,0.7929]
[1749222828115,5.77e-06,2520.5,2520.4,7.0791]
[1749222829017,0.79268,2521.1,2521.0,0.79269]
[1749222829216,1.30745226,2521.3,2521.0,3.2078]
[1749222829518,0.00595226,2521.3,2521.2,0.79265]
[1749222829908,3.2078,2522.0,2521.2,0.79265]
[1749222829909,0.6314,2521.9,2521.7,0.79247]
[1749222830108,8.3218,2522.0,2521.4,1.98147]
[1749222830109,3.2078,2522.0,2521.5,3.2078]
[1749222830307,3.2078,2522.0,2521.7,0.79248]
[1749222830509,2.5845,2522.3,2521.8,3.2078]
[1749222830709,2.5845,2522.3,2521.8,5.18891]
[1749222830710,1.3057,2522.3,2521.8,5.18891]
[1749222830919,0.68025226,2522.3,2521.8,5.19486226]
[1749222831112,0.79237,2522.1,2521.8,3.21375226]
[1749222831414,0.79241,2522.0,2521.8,3.21375226]
[1749222831719,0.79241,2522.0,2521.9,0.79243]
[1749222831921,0.79238,2522.1,2522.0,0.7924]
[1749222832121,1.346,2522.2,2521.8,3.21375226]
[1749222832513,0.79238,2522.1,2522.0,0.79239]
[1749222832709,0.79238,2522.1,2521.8,3.21375226]
[1749222832710,1.346,2522.2,2521.8,3.21375226]
[1749222833224,0.68025226,2522.3,2522.0,0.79239]
[1749222833512,0.79236,2522.2,2522.0,0.79238]
[1749222833716,0.68025226,2522.3,2522.2,0.79234]
[1749222833912,0.79234,2522.2,2521.8,3.21375226]
[1749222834113,0.79238,2522.1,2522.0,0.79239]
[1749222834312,0.79235,2522.2,2522.1,0.79237]
[1749222834511,0.68025226,2522.3,2522.1,0.79237]
[1749222834512,1.47257226,2522.3,2522.1,0.79237]
[1749222834721,0.68025226,2522.3,2522.0,0.79238]
[1749222834923,0.79235,2522.2,2522.1,0.79236]
[1749222835214,0.79234,2522.2,2522.1,0.79236]
[1749222835921,1.47258226,2522.3,2522.1,0.79236]
[1749222836120,0.68025226,2522.3,2522.2,0.79234]
[1749222836319,0.68025226,2522.3,2521.9,1.3399]
[1749222836520,0.68025226,2522.3,2522.2,0.79234]
[1749222836721,1.47255226,2522.3,2522.2,0.79234]
[1749222837322,0.79238,2522.1,2522.0,0.79237]
[1749222837926,0.79243,2522.0,2521.9,0.79243]
[1749222838220,0.68025226,2522.3,2521.8,3.21375226]
[1749222838425,0.79235,2522.2,2522.1,0.79234]
[1749222839125,0.79235,2522.2,2521.9,1.98108]
[1749222839126,0.68025226,2522.3,2522.2,0.79234]
[1749222839627,1.47255226,2522.3,2522.2,0.79234]
[1749222839828,0.68025226,2522.3,2522.2,0.79234]
[1749222840128,1.47255226,2522.3,2522.2,0.79234]
[1749222840626,0.79235,2522.2,2522.1,0.79235]
[1749222841027,1.47259226,2522.3,2522.2,0.79234]
[1749222841222,0.68025226,2522.3,2522.2,0.79234]
[1749222841425,0.00595226,2522.3,2522.2,0.79234]
[1749222841628,0.00595226,2522.3,2522.2,2.15054]
[1749222841828,0.00595226,2522.3,2522.1,3.8718]
[1749222842125,0.00595226,2522.3,2522.2,0.79234]
[1749222842126,0.79828226,2522.3,2522.2,0.79234]
[1749222842327,0.00595226,2522.3,2522.2,0.79234]
[1749222842924,0.00595226,2522.3,2522.2,1.45634]
[1749222843722,0.00595226,2522.3,2522.2,0.79234]
[1749222844126,0.07728577,2522.3,2522.2,0.79234]
[1749222845723,0.07728577,2522.3,2522.2,2.08434]
[1749222846323,5.77e-06,2522.3,2522.2,7.08434]
[1749222847222,0.00389231,2522.5,2522.2,7.08434]
[1749222847422,1.41674,2523.5,2523.4,0.79194]
[1749222847625,1.41676,2523.5,2523.3,3.99977]
[1749222847827,0.6248,2523.5,2523.3,3.2078]
[1749222848018,1.41673,2523.5,2523.4,0.79196]
[1749222848218,1.43978,2523.7,2523.3,3.2078]
[1749222848417,1.43978,2523.7,2523.5,0.79191]
[1749222848624,0.6479,2523.7,2523.6,3.9997]
[1749222848828,0.6248,2523.8,2523.7,0.79187]
[1749222849029,1.41665,2523.8,2523.6,3.2078]
[1749222849224,0.6248,2523.8,2523.7,0.79187]
[1749222849624,5.1,2524.9,2524.7,0.79153]
[1749222849826,2.0183,2524.8,2524.7,0.79155]
[1749222850024,0.17011454,2525.4,2525.0,0.79144]
[1749222850224,0.17011454,2525.4,2525.3,0.79136]
[1749222850525,1.75858553,2526.8,2525.4,1.97831]
[1749222850723,1.75858553,2526.8,2525.3,5.0]
[1749222850724,0.07915462,2526.7,2526.0,3.2078]
[1749222850928,3.2078,2526.6,2526.0,3.2078]
[1749222851227,0.07916089,2526.5,2526.0,3.2078]
[1749222851429,0.79118,2525.9,2525.8,0.00594012]
[1749222851627,3.2078,2526.3,2525.8,0.00594012]
[1749222851829,0.79118,2525.9,2525.8,0.00594012]
[1749222852030,1.3696,2526.2,2525.8,3.21374012]
[1749222852231,1.3696,2526.2,2526.1,3.2078]
[1749222852528,1.3696,2526.2,2525.8,0.00594012]
[1749222852529,3.28696716,2526.3,2525.9,3.2078]
[1749222853028,7.32408,2526.2,2525.8,0.00594012]
[1749222853324,2.62593,2526.9,2525.8,0.00594012]
[1749222853325,3.2078,2527.6,2526.3,1.97762]
[1749222853528,0.38850247,2527.8,2526.3,1.97762]
[1749222853529,0.07912957,2527.5,2527.4,0.79071]
[1749222853721,0.07912957,2527.5,2527.4,3.99851]
[1749222853929,0.13413438,2527.5,2527.4,3.99851]
[1749222854124,0.13413438,2527.5,2527.4,3.2078]
[1749222854330,0.13413438,2527.5,2527.2,0.00594012]
[1749222854931,0.07912957,2527.5,2527.2,1.27834012]
[1749222855131,0.05500481,2527.4,2527.3,0.79074]
[1749222855327,9.57e-06,2527.5,2527.4,0.79071]
[1749222855629,3.2078,2527.8,2527.2,1.27834012]
[1749222855830,6.531,2528.3,2527.7,3.2078]
[1749222856033,6.531,2528.2,2527.7,3.2078]
[1749222856230,3.2078,2528.2,2527.7,3.2078]
[1749222856431,3.2078,2527.8,2527.2,3.21374012]
[1749222856630,7.8194,2527.7,2527.2,3.21374012]
[1749222857027,0.79073,2527.4,2527.2,3.21374012]
[1749222857233,0.79071,2527.4,2527.2,0.00594012]
[1749222857435,0.7908,2527.1,2526.6,0.79094]
[1749222857736,3.2078,2526.8,2526.2,3.8818]
[1749222857936,3.2078,2526.8,2526.2,3.2078]
[1749222857937,6.528,2526.7,2526.2,3.2078]
[1749222858133,3.2078,2526.5,2526.0,1.2957]
[1749222858330,3.2078,2526.5,2525.9,3.2078]
[1749222858529,0.79114,2526.0,2525.9,3.21374012]
[1749222858829,6.528,2526.0,2525.9,0.00594012]
[1749222859238,0.79115,2526.0,2525.9,0.00594012]
[1749222859529,3.2078,2526.0,2525.9,0.00594012]
[1749222859836,6.527,2526.0,2525.9,0.00594012]
[1749222860338,7.31815,2526.0,2525.9,0.00594012]
[1749222860534,3.2078,2526.3,2525.9,0.00594012]
[1749222860737,0.00589965,2526.5,2525.9,3.21374012]
[1749222861037,0.00589965,2526.5,2526.4,0.79102]
[1749222861423,0.00589965,2526.5,2526.2,3.2078]
[1749222861729,0.79109,2526.2,2525.9,4.08407981]
[1749222861933,0.00589965,2526.5,2525.9,4.08407981]
[1749222861934,0.00589965,2526.5,2525.9,3.29291981]
[1749222862137,6.53289965,2526.5,2526.2,0.79107]
[1749222862337,6.53289965,2526.5,2526.3,0.79103]
[1749222862638,6.53289965,2526.5,2526.2,3.99886]
[1749222862830,7.32388965,2526.5,2526.2,3.99886]
[1749222863031,6.53289965,2526.5,2526.3,0.79104]
[1749222863330,6.53289965,2526.5,2526.2,3.2078]
[1749222863534,0.00589965,2526.5,2526.4,0.79102]
[1749222864641,0.00589965,2526.5,2526.2,3.2078]
[1749222864936,0.79111,2526.2,2525.9,0.79710012]
[1749222865125,0.79112,2526.1,2525.9,0.79710012]
[1749222865331,0.79112,2526.1,2525.9,0.79712012]
[1749222865532,5.18539,2526.4,2525.9,0.00594012]
[1749222865734,1.2659,2526.3,2526.0,0.79112]
[1749222865933,0.79108,2526.2,2526.0,0.79113]
[1749222866136,1.2659,2526.3,2525.9,0.00594012]
[1749222866341,9.7328,2526.4,2525.9,0.00594012]
[1749222866638,0.79690965,2526.5,2526.2,0.79107]
[1749222866639,6.53089965,2526.5,2526.2,0.79107]
[1749222866838,6.53089965,2526.5,2526.1,3.2078]
[1749222866839,0.00589965,2526.5,2526.1,3.2078]
[1749222867036,0.00589965,2526.5,2526.4,3.99882]
[1749222867228,23.942,2527.9,2526.5,3.95495]
[1749222867229,1.3509,2527.5,2526.5,3.95495]
[1749222867429,1.3509,2527.5,2527.1,3.2078]
[1749222867738,6.525,2527.6,2527.1,3.2078]
[1749222867942,7.31566,2527.6,2527.4,0.79069]
[1749222868236,7.31566,2527.6,2527.4,0.79071]
[1749222868744,6.525,2527.6,2527.5,0.79068]
[1749222869036,0.7907,2527.5,2527.3,0.79073]
[1749222869236,0.79072,2527.4,2527.2,2.06040012]
[1749222869542,0.79062,2527.7,2527.4,0.79069]
[1749222869738,1.2795,2528.0,2527.3,1.2637]
[1749222869931,0.79074,2527.3,2527.2,0.00594012]
[1749222870136,0.79095,2526.7,2526.4,3.2078]
[1749222870432,1.3663,2527.2,2526.4,3.2078]
[1749222870640,0.79097,2526.6,2526.4,3.2078]
[1749222870831,0.79099,2526.5,2526.4,3.2078]
[1749222871033,1.97749,2526.5,2526.2,0.00594012]
[1749222871239,6.524,2526.6,2526.2,0.00594012]
[1749222871240,0.79105,2526.3,2526.2,0.00594012]
[1749222872045,7.31405,2526.3,2526.2,0.00594012]
[1749222872238,6.523,2526.3,2526.2,0.00594012]
[1749222872539,7.31405,2526.3,2526.2,0.00594012]
[1749222872738,0.79105,2526.3,2526.2,0.00594012]
[1749222872934,0.00594012,2526.7,2526.2,0.00594012]
[1749222873135,0.79689012,2526.7,2526.4,3.2078]
[1749222873336,0.00594012,2526.7,2526.4,0.791]
[1749222873537,0.00594012,2526.7,2526.2,1.26374012]
[1749222873739,0.79101,2526.5,2526.2,0.79700012]
[1749222873938,1.36904012,2526.7,2526.2,0.79700012]
[1749222874245,1.36904012,2526.7,2526.2,0.00594012]
[1749222874440,0.79105,2526.3,2526.2,0.00594012]
[1749222874743,6.55421012,2526.7,2526.2,0.00594012]
[1749222874950,0.79105,2526.3,2526.2,0.00594012]
[1749222875542,4.57684012,2526.7,2526.2,0.00594012]
[1749222875749,0.07133351,2526.5,2526.2,0.00594012]
[1749222876137,0.07133351,2526.5,2526.4,0.79102]
[1749222876340,0.07133351,2526.5,2526.4,3.99882]
[1749222878448,0.07133351,2526.5,2526.2,1.25624012]
[1749222878646,0.07133351,2526.5,2526.4,3.99882]
[1749222880040,0.07133351,2526.5,2526.4,3.2078]
[1749222880244,0.86232351,2526.5,2526.4,3.2078]
[1749222880447,0.07133351,2526.5,2526.4,3.99882]
[1749222880643,0.07133351,2526.5,2526.4,8.99882]
[1749222880840,0.07133351,2526.5,2526.4,3.99882]
[1749222882051,0.86232351,2526.5,2526.4,3.2078]
[1749222882658,0.07133351,2526.5,2526.4,3.2078]
[1749222882855,0.86232351,2526.5,2526.4,3.2078]
[1749222883053,0.86232351,2526.5,2526.4,3.99882]
[1749222883257,0.86232351,2526.5,2526.4,3.2078]
[1749222883457,0.07133351,2526.5,2526.4,3.99882]
[1749222883757,0.86232351,2526.5,2526.4,3.2078]
[1749222883950,0.86232351,2526.5,2526.4,3.99882]
[1749222884151,0.86232351,2526.5,2526.4,3.2078]
[1749222884353,0.07133351,2526.5,2526.4,3.99882]
[1749222886457,0.07133351,2526.5,2526.4,3.70206899]
[1749222886662,0.07133351,2526.5,2526.4,3.31629713]
[1749222892662,0.07133351,2526.5,2526.4,3.01956558]
[1749222895855,0.00594012,2526.7,2526.4,10.38230462]
[1749222896057,3.63e-06,2526.7,2526.6,0.79096]
[1749222896263,3.63e-06,2526.7,2526.6,9.64371924]
[1749222896461,3.63e-06,2526.7,2526.6,7.31396]
[1749222896969,3.63e-06,2526.7,2526.6,12.31396]
[1749222897174,3.63e-06,2526.7,2526.6,15.29981924]
[1749222897465,3.63e-06,2526.7,2526.6,3.77681924]
[1749222897657,3.63e-06,2526.7,2526.6,1.44706]
[1749222897862,3.63e-06,2526.7,2526.6,0.79096]
[1749222898658,3.63e-06,2526.7,2526.4,2.22854558]
[1749222898858,0.87222713,2526.6,2526.3,1.97765]
[1749222899061,6.52300363,2526.7,2526.3,3.2078]
[1749222899361,1.66318221,2526.6,2526.4,0.79102]
[1749222899561,0.87220221,2526.5,2526.2,0.00594012]
[1749222899761,0.79098,2526.6,2526.4,0.791]
[1749222899964,0.07133351,2526.5,2526.4,0.79102]
[1749222900858,0.07133351,2526.5,2526.4,3.99882]
[1749222901363,3.51e-06,2526.5,2526.4,11.32857924]
[1749222901566,3.51e-06,2526.5,2526.4,10.25552]
[1749222901970,3.52373739,2528.6,2527.0,3.95406]
[1749222902264,1.53867319,2528.5,2527.9,5.18413]
[1749222902473,0.87247319,2528.4,2527.9,3.2078]
[1749222902762,0.6662,2528.5,2528.3,0.79041]
[1749222903069,3.2078,2528.8,2528.4,3.2078]
[1749222903262,3.2078,2529.1,2528.5,1.97592]
[1749222903463,3.2078,2529.7,2528.9,1.97561]
[1749222903663,3.2078,2529.7,2529.2,1.97538]
[1749222903860,3.2078,2529.7,2529.1,3.2078]
[1749222904167,3.2078,2529.7,2529.2,1.3826]
[1749222904371,3.2078,2529.7,2528.8,3.2078]
[1749222904568,3.2078,2529.4,2528.5,3.2078]
[1749222904769,1.97577,2528.7,2528.1,0.00594012]
[1749222904965,0.79046,2528.2,2528.1,0.00594012]
[1749222905161,3.99826,2528.2,2528.1,0.00594012]
[1749222905359,3.2078,2528.2,2528.1,0.00594012]
[1749222905561,5.79046,2528.2,2528.1,0.00594012]
[1749222905865,0.79046,2528.2,2528.1,0.00594012]
[1749222906069,0.6662,2528.6,2528.1,0.00594012]
[1749222906070,0.79042,2528.4,2528.1,0.00594012]
[1749222906265,6.521,2528.4,2528.3,0.79043]
[1749222906471,0.79044,2528.3,2528.1,0.00594012]
[1749222906667,10.395,2528.6,2528.1,0.00594012]
[1749222906668,0.79046,2528.2,2528.1,0.00594012]
[1749222907265,0.79041,2528.4,2528.1,0.79642012]
[1749222907663,6.521,2528.5,2528.1,0.00594012]
[1749222907870,3.874,2528.6,2528.2,0.79044]
[1749222908064,0.6662,2528.6,2528.2,3.2078]
[1749222908272,6.521,2528.9,2528.8,0.79027]
[1749222908474,0.6613,2529.0,2528.5,3.2078]
[1749222908669,0.79028,2528.8,2528.5,0.79035]